bitfinex-derivatives/quotes_SOLF0:USTF0_20250928
["timestamp","ask_amount","ask_price","bid_price","bid_amount"]
[1759055767979,69.7855,200.52,200.4,7.45]
[1759055768181,4.4876,200.46,200.4,7.45]
[1759055768472,8.1,200.47,200.4,7.45]
[1759055768876,12.5873,200.47,200.4,7.45]
[1759055773682,69.8061,200.46,200.39,23.74]
[1759055773869,7.49,200.45,200.39,23.74]
[1759055774280,4.4885,200.42,200.39,23.74]
[1759055774483,11.9785,200.42,200.39,31.74]
[1759055774678,7.49,200.42,200.39,31.74]
[1759055777681,11.9785,200.42,200.39,31.74]
[1759055777882,7.49,200.45,200.34,8.0]
[1759055778187,11.9788,200.41,200.34,129.34]
[1759055779281,4.489,200.4,200.34,129.34]
[1759055779483,7.49,200.41,200.36,8.0]
[1759055779881,7.49,200.41,200.35,4.4899]
[1759055780282,7.49,200.41,200.36,8.0]
[1759055780673,7.49,200.41,200.35,4.4899]
[1759055780879,70.41867096,200.47,200.34,136.58541449]
[1759055780880,7.49,200.46,200.34,136.58541449]
[1759055781080,7.49,200.46,200.35,8.0]
[1759055781486,11.9776,200.46,200.35,8.0]
[1759055781780,11.9776,200.46,200.38,8.0]
[1759055781980,4.4878,200.45,200.39,121.4]
[1759055782487,4.4878,200.45,200.38,8.0]
[1759055782682,4.4878,200.45,200.39,121.4]
[1759055783182,4.4878,200.45,200.39,121.38]
[1759055783486,4.4878,200.45,200.38,8.0]
[1759055783685,4.4878,200.45,200.39,121.38]
[1759055784182,4.4878,200.45,200.4,8.03]
[1759055784378,4.4878,200.45,200.39,121.38]
[1759055784379,8.07,200.44,200.39,121.38]
[1759055784686,8.07,200.44,200.37,4.4894]
[1759055784879,8.07,200.44,200.39,121.38]
[1759055785386,8.07,200.43,200.36,8.03]
[1759055785688,8.07,200.43,200.37,121.36]
[1759055785889,8.07,200.44,200.34,8.03]
[1759055786187,8.07,200.43,200.35,121.38]
[1759055787485,4.4892,200.39,200.35,121.38]
[1759055787985,4.4892,200.39,200.36,8.03]
[1759055788288,4.4892,200.39,200.35,121.38]
[1759055788587,4.4892,200.39,200.36,8.03]
[1759055788786,12.5592,200.39,200.36,8.03]
[1759055791387,12.5592,200.39,200.35,121.38]
[1759055791580,4.4892,200.39,200.36,8.03]
[1759055791782,4.4892,200.39,200.35,121.38]
[1759055792088,4.4892,200.39,200.36,8.03]
[1759055792287,4.4892,200.39,200.35,121.38]
[1759055792488,4.4892,200.39,200.36,8.03]
[1759055792688,12.5592,200.39,200.36,8.03]
[1759055792885,4.4887,200.41,200.36,121.36]
[1759055793691,4.4887,200.41,200.34,8.03]
[1759055793878,4.4887,200.41,200.35,121.34]
[1759055794188,4.4887,200.41,200.36,8.03]
[1759055794385,4.4887,200.41,200.35,121.34]
[1759055794589,4.4887,200.41,200.35,125.8298]
[1759055794785,4.4887,200.41,200.36,8.03]
[1759055795185,12.5587,200.41,200.36,8.03]
[1759055795393,12.5587,200.41,200.35,125.8298]
[1759055796086,12.5587,200.41,200.36,8.03]
[1759055796293,12.5587,200.41,200.38,8.03]
[1759055796787,4.4881,200.44,200.39,8.03]
[1759055797090,8.68567096,200.47,200.39,121.3]
[1759055797288,0.61567096,200.47,200.39,121.3]
[1759055797486,0.61567096,200.47,200.38,8.03]
[1759055797693,8.07,200.45,200.38,129.47]
[1759055799682,4.4888,200.41,200.39,8.03]
[1759055801790,4.4889,200.4,200.35,8.03]
[1759055802002,12.5589,200.4,200.37,8.03]
[1759055803100,12.5589,200.4,200.37,129.43]
[1759055803297,4.4889,200.4,200.38,8.03]
[1759055804509,12.5589,200.4,200.37,121.4]
[1759055804800,12.5591,200.39,200.36,129.41]
[1759055805093,4.4891,200.39,200.36,121.38]
[1759055805894,4.4891,200.39,200.36,121.36]
[1759055806296,4.4891,200.39,200.37,8.03]
[1759055806493,4.4891,200.39,200.36,121.36]
[1759055806698,4.4891,200.39,200.37,8.03]
[1759055806898,4.4891,200.39,200.36,121.36]
[1759055807403,4.4891,200.39,200.37,8.03]
[1759055807603,4.4891,200.39,200.36,121.36]
[1759055807992,4.4891,200.39,200.37,8.03]
[1759055809003,4.4891,200.39,200.36,121.36]
[1759055809603,4.4891,200.39,200.37,8.03]
[1759055809796,4.4886,200.41,200.36,121.36]
[1759055809996,12.5586,200.41,200.37,8.03]
[1759055811197,12.5586,200.41,200.36,121.36]
[1759055811399,12.5586,200.41,200.37,8.03]
[1759055811698,12.5586,200.41,200.36,121.36]
[1759055812102,12.5586,200.41,200.37,8.03]
[1759055812306,12.5586,200.41,200.36,121.36]
[1759055812498,4.4886,200.41,200.36,121.36]
[1759055812902,4.4886,200.41,200.37,8.03]
[1759055813105,4.4886,200.41,200.36,121.36]
[1759055813299,4.4886,200.41,200.37,7.56]
[1759055814002,8.07,200.44,200.37,7.56]
[1759055814003,96.80129251,200.5,200.38,7.56]
[1759055814199,7.74,200.51,200.41,7.56]
[1759055814200,3.46900338,200.49,200.41,7.56]
[1759055814408,7.74,200.55,200.43,7.56]
[1759055814699,4.486,200.53,200.47,7.56]
[1759055815003,3.46538274,200.52,200.48,121.6]
[1759055815204,3.46538274,200.51,200.49,7.56]
[1759055815405,12.2255,200.55,200.49,7.56]
[1759055815604,3.46415911,200.54,200.48,129.16]
[1759055815795,3.46415911,200.53,200.49,7.56]
[1759055815997,3.46415911,200.52,200.49,7.56]
[1759055816201,7.74,200.53,200.49,7.56]
[1759055816202,3.46415911,200.51,200.49,7.56]
[1759055816402,7.74,200.54,200.49,7.56]
[1759055816606,7.74,200.52,200.49,7.56]
[1759055816808,3.46297166,200.51,200.49,7.56]
[1759055817012,7.74,200.52,200.49,7.56]
[1759055817210,3.46192542,200.51,200.49,7.56]
[1759055817507,7.74,200.52,200.49,7.56]
[1759055817707,4.4855,200.55,200.49,7.56]
[1759055817708,3.46192542,200.51,200.49,7.56]
[1759055817904,12.2255,200.55,200.49,7.56]
[1759055818103,11.20214563,200.54,200.48,121.6]
[1759055818303,3.46214563,200.53,200.49,7.56]
[1759055818503,7.74,200.54,200.49,7.56]
[1759055818704,3.46085886,200.53,200.48,126.0869]
[1759055818904,7.74,200.54,200.49,7.56]
[1759055819607,7.74,200.54,200.5,7.56]
[1759055819807,7.74,200.54,200.48,121.6]
[1759055820407,7.74,200.54,200.48,126.0869]
[1759055820708,94.2332,200.62,200.48,126.0869]
[1759055820709,7.74,200.57,200.49,7.56]
[1759055820908,3.45969235,200.56,200.49,7.56]
[1759055821212,7.74,200.62,200.51,7.56]
[1759055821413,3.46025273,200.61,200.53,7.56]
[1759055821608,7.74,200.66,200.58,7.56]
[1759055821807,3.45679694,200.65,200.59,121.8]
[1759055822010,7.74,200.71,200.61,4.484]
[1759055822407,7.74,200.71,200.62,7.56]
[1759055822910,7.74,200.7,200.58,7.56]
[1759055823112,69.719,200.71,200.59,29.24]
[1759055823413,4.4828,200.67,200.59,29.24]
[1759055823613,7.74,200.66,200.59,29.24]
[1759055823811,7.74,200.66,200.58,7.56]
[1759055824010,4.4833,200.65,200.58,7.56]
[1759055824310,7.74,200.66,200.58,122.04]
[1759055824514,69.7346,200.67,200.58,122.04]
[1759055824811,7.74,200.66,200.58,122.04]
[1759055825608,4.4837,200.63,200.58,122.04]
[1759055825806,7.74,200.63,200.58,122.04]
[1759055826012,7.74,200.63,200.59,7.56]
[1759055829209,4.4835,200.64,200.59,7.56]
[1759055829410,7.74,200.61,200.56,121.94]
[1759055829715,12.2239,200.62,200.56,121.94]
[1759055831121,12.2239,200.62,200.55,129.46]
[1759055831718,4.4844,200.6,200.54,0.86496979]
[1759055831917,12.0344,200.6,200.54,122.76496979]
[1759055832616,12.0344,200.6,200.54,121.9]
[1759055833920,7.55,200.6,200.55,7.59]
[1759055834529,7.55,200.6,200.54,121.9]
[1759055834821,12.0338,200.63,200.55,7.59]
[1759055835024,4.4841,200.61,200.55,7.59]
[1759055835518,7.55,200.67,200.55,7.59]
[1759055836621,4.4833,200.65,200.55,7.59]
[1759055837423,12.0333,200.65,200.55,7.59]
[1759055837626,4.4836,200.64,200.55,7.59]
[1759055838020,7.55,200.65,200.55,7.59]
[1759055838219,7.55,200.65,200.56,121.8]
[1759055839124,4.4841,200.62,200.56,121.8]
[1759055839317,4.4841,200.62,200.55,7.59]
[1759055839514,4.4841,200.62,200.55,129.37]
[1759055840325,7.55,200.63,200.51,7.59]
[1759055840625,7.55,200.6,200.51,7.59]
[1759055841214,4.4856,200.55,200.51,7.59]
[1759055841415,7.55,200.56,200.5,0.86792433]
[1759055842727,12.0361,200.53,200.5,0.86792433]
[1759055843024,4.4861,200.53,200.51,7.59]
[1759055847621,4.4855,200.55,200.51,7.59]
[1759055847828,4.4855,200.55,200.51,7.76]
[1759055848021,4.4855,200.55,200.5,0.86792433]
[1759055848420,4.4855,200.55,200.51,7.76]
[1759055848924,4.4855,200.55,200.5,0.86792433]
[1759055849330,4.4855,200.55,200.51,7.76]
[1759055850124,4.4855,200.55,200.5,0.86792433]
[1759055850428,4.485,200.57,200.51,7.76]
[1759055850627,4.485,200.57,200.53,7.76]
[1759055851324,4.485,200.57,200.52,121.78]
[1759055851525,4.485,200.57,200.53,7.76]
[1759055851928,4.4846,200.59,200.53,7.76]
[1759055853931,4.4841,200.61,200.53,7.76]
[1759055854532,4.4845,200.6,200.53,4.4858]
[1759055854832,4.4845,200.6,200.54,7.76]
[1759055856226,7.64,200.61,200.53,7.76]
[1759055857732,4.4849,200.58,200.53,7.76]
[1759055858337,4.4829,200.67,200.55,7.76]
[1759055858532,4.4829,200.67,200.57,7.76]
[1759055858934,4.4831,200.66,200.57,7.76]
[1759055859135,4.4831,200.66,200.59,7.76]
[1759055859334,4.4831,200.66,200.59,129.7]
[1759055861938,4.4831,200.66,200.59,7.76]
[1759055862137,4.4831,200.66,200.59,129.66]
[1759055862632,4.4831,200.66,200.6,7.76]
[1759055869047,8.23942437,200.72,200.63,7.76]
[1759055869348,8.23942437,200.72,200.65,7.76]
[1759055869739,12.72122437,200.72,200.65,7.76]
[1759055871738,8.23942437,200.72,200.65,4.4831]
[1759055872050,0.59942437,200.72,200.66,7.76]
[1759055872434,0.59942437,200.72,200.67,4.4826]
[1759055872644,4.4811,200.75,200.68,7.76]
[1759055873040,7.64,200.76,200.68,7.76]
[1759055873646,4.4813,200.74,200.68,7.76]
[1759055874939,12.1209,200.76,200.68,7.76]
[1759055875545,4.4804,200.78,200.68,7.84]
[1759055876341,4.4807,200.77,200.71,7.84]
[1759055877950,12.2307,200.77,200.71,7.84]
[1759055878150,4.4809,200.76,200.71,7.84]
[1759055878551,7.75,200.76,200.71,7.84]
[1759055878753,4.4804,200.78,200.71,7.84]
[1759055879152,4.4804,200.78,200.71,4.4817]
[1759055879354,4.4804,200.78,200.72,7.84]
[1759055879558,7.75,200.79,200.72,7.84]
[1759055879857,4.48,200.8,200.72,7.84]
[1759055880560,4.48,200.8,200.72,12.3215]
[1759055881154,4.48,200.8,200.73,7.84]
[1759055881552,4.4802,200.79,200.73,7.84]
[1759055881751,7.75,200.81,200.73,7.84]
[1759055882056,69.6822,200.82,200.7,134.122]
[1759055882355,7.75,200.81,200.7,134.122]
[1759055882558,4.4807,200.77,200.7,134.122]
[1759055883650,7.75,200.76,200.7,7.84]
[1759055884547,4.4811,200.75,200.7,7.84]
[1759055884752,4.4811,200.75,200.69,7.84]
[1759055885055,7.75,200.77,200.69,7.84]
[1759055885359,12.2306,200.77,200.71,7.84]
[1759055887157,4.4809,200.76,200.71,7.84]
[1759055887358,12.2309,200.76,200.71,7.84]
[1759055887758,12.2309,200.76,200.7,7.84]
[1759055890358,4.4811,200.75,200.7,7.84]
[1759055890556,4.4811,200.75,200.7,7.89]
[1759055890959,4.4811,200.75,200.69,126.2222]
[1759055891463,4.4811,200.75,200.7,7.89]
[1759055892065,4.4811,200.75,200.71,7.89]
[1759055892465,4.4811,200.75,200.7,121.66]
[1759055892960,4.4811,200.75,200.71,7.89]
[1759055893154,4.4811,200.75,200.7,121.66]
[1759055893859,4.4811,200.75,200.71,7.89]
[1759055894061,7.48,200.74,200.71,7.89]
[1759055895068,11.9611,200.75,200.71,7.89]
[1759055895365,11.9611,200.75,200.7,121.6]
[1759055895960,11.9611,200.75,200.71,7.89]
[1759055896159,11.9611,200.75,200.7,121.58]
[1759055896667,11.9611,200.75,200.71,7.89]
[1759055896861,11.9611,200.75,200.69,4.4822]
[1759055897166,11.9611,200.75,200.7,121.58]
[1759055897467,11.9611,200.75,200.71,7.89]
[1759055897660,11.9611,200.75,200.7,121.58]
[1759055897858,7.48,200.75,200.71,7.89]
[1759055898162,7.48,200.75,200.72,7.89]
[1759055899468,7.48,200.75,200.71,121.54]
[1759055899670,11.9608,200.76,200.71,121.54]
[1759055900062,11.9608,200.76,200.72,7.89]
[1759055900364,7.48,200.82,200.73,7.89]
[1759055900967,11.9595,200.82,200.76,4.4807]
[1759055901168,11.9595,200.82,200.78,7.89]
[1759055901368,8.13766945,200.85,200.79,7.89]
[1759055901868,4.4791,200.84,200.79,7.89]
[1759055902166,4.4791,200.84,200.78,7.89]
[1759055902672,70.32786945,200.85,200.68,7.89]
[1759055902971,7.48,200.84,200.7,7.89]
[1759055903268,4.4802,200.79,200.73,4.4814]
[1759055904268,4.4802,200.79,200.74,7.38]
[1759055904466,4.4802,200.79,200.73,4.4814]
[1759055904667,4.4802,200.79,200.74,7.38]
[1759055904864,12.5202,200.79,200.73,4.4814]
[1759055905368,12.5202,200.79,200.71,18.36]
[1759055905369,8.04,200.79,200.74,4.4811]
[1759055905668,4.4797,200.81,200.72,7.38]
[1759055905871,8.04,200.83,200.72,7.38]
[1759055906067,12.5193,200.83,200.77,4.4804]
[1759055906264,12.5193,200.83,200.77,23.3404]
[1759055906470,12.5193,200.83,200.77,30.7204]
[1759055908273,0.65766945,200.85,200.78,4.4802]
[1759055908274,5.13656945,200.85,200.78,4.4802]
[1759055908466,0.65766945,200.85,200.78,11.8602]
[1759055909672,4.4791,200.84,200.78,11.8602]
[1759055914577,4.4791,200.84,200.79,7.38]
[1759055914779,4.4791,200.84,200.78,4.4802]
[1759055915274,12.5187,200.86,200.79,11.86]
[1759055915474,12.5187,200.86,200.78,7.38]
[1759055916176,12.5187,200.86,200.78,133.5802]
[1759055916973,8.04,200.86,200.78,129.1]
[1759055917179,8.04,200.85,200.78,7.38]
[1759055918077,8.04,200.86,200.78,7.38]
[1759055919677,12.5196,200.82,200.78,7.38]
[1759055919877,12.5196,200.82,200.76,7.38]
[1759055924282,12.5196,200.82,200.76,129.0]
[1759055927487,4.4798,200.81,200.76,129.0]
[1759055927691,12.5198,200.81,200.77,7.38]
[1759055928993,12.5198,200.81,200.76,121.62]
[1759055929190,12.5198,200.81,200.76,126.1007]
[1759055929387,12.5198,200.81,200.77,7.38]
[1759055929587,12.5198,200.81,200.76,126.1007]
[1759055929792,12.5198,200.81,200.77,7.38]
[1759055930193,12.5198,200.81,200.76,126.1007]
[1759055930395,12.5198,200.81,200.77,7.38]
[1759055930894,12.5198,200.81,200.76,126.1007]
[1759055931094,12.5198,200.81,200.77,7.38]
[1759055931400,12.5198,200.81,200.76,126.1007]
[1759055931600,12.5198,200.81,200.77,7.38]
[1759055932093,12.5198,200.81,200.76,126.1007]
[1759055932799,12.5198,200.81,200.77,7.38]
[1759055932998,12.5198,200.81,200.76,126.1007]
[1759055933193,12.5198,200.81,200.77,7.38]
[1759055933396,4.4793,200.83,200.77,7.69]
[1759055933591,7.97,200.84,200.77,7.69]
[1759055934004,4.4795,200.82,200.77,4.4804]
[1759055934695,7.97,200.84,200.77,7.69]
[1759055934696,4.4791,200.84,200.77,7.69]
[1759055934900,7.97,200.87,200.77,7.69]
[1759055935502,4.4789,200.85,200.8,7.69]
[1759055935703,4.4789,200.85,200.79,4.48]
[1759055935902,12.4489,200.85,200.8,7.69]
[1759055936101,12.4489,200.85,200.79,4.48]
[1759055936400,12.4489,200.85,200.8,7.69]
[1759055936993,12.4489,200.85,200.79,4.48]
[1759055937194,7.97,200.83,200.8,7.69]
[1759055937391,77.6307,200.88,200.8,7.69]
[1759055937999,4.4792,200.83,200.8,7.69]
[1759055938194,12.4492,200.83,200.8,7.69]
[1759055942106,4.4792,200.83,200.8,7.69]
[1759055942301,7.97,200.82,200.8,7.69]
[1759055943006,12.4492,200.83,200.8,7.69]
[1759055943899,7.97,200.83,200.8,7.69]
[1759055944604,7.97,200.83,200.79,121.34]
[1759055944805,4.4783,200.87,200.8,7.69]
[1759055945001,7.97,200.88,200.8,7.69]
[1759055945205,7.97,200.88,200.82,7.69]
[1759055946601,4.4786,200.86,200.81,121.32]
[1759055946801,7.97,200.86,200.81,121.32]
[1759055947003,7.97,200.86,200.82,7.69]
[1759055947204,7.97,200.86,200.8,7.69]
[1759055947410,7.97,200.86,200.83,7.69]
[1759055948610,4.4788,200.85,200.83,7.69]
[1759055952715,8.02,200.91,200.83,7.41]
[1759055953011,111.0727877,200.92,200.84,121.2]
[1759055953410,8.02,200.91,200.84,121.2]
[1759055953612,12.4982,200.88,200.85,7.41]
[1759055954617,4.4782,200.88,200.85,7.41]
[1759055954818,12.4982,200.88,200.85,7.41]
[1759055956522,8.02,200.87,200.85,7.41]
[1759055957922,8.02,200.87,200.85,128.59]
[1759055959124,8.02,200.87,200.85,7.41]
[1759055959325,8.02,200.87,200.85,128.57]
[1759055961528,8.02,200.87,200.85,7.41]
[1759055961728,8.02,200.87,200.86,121.16]
[1759055962423,8.02,200.87,200.84,7.41]
[1759055962424,4.4785,200.86,200.84,7.41]
[1759055962629,12.4985,200.86,200.85,121.16]
[1759055963432,4.4785,200.86,200.85,128.91]
[1759055964826,4.4785,200.86,200.85,7.75]
[1759055965129,4.4785,200.86,200.85,128.91]
[1759055969655,4.4791,200.84,200.79,7.75]
[1759055969932,12.4191,200.84,200.81,7.75]
[1759055970123,12.4191,200.84,200.82,86.71]
[1759055970935,4.4791,200.84,200.83,7.75]
[1759055972332,4.4794,200.83,200.78,7.75]
[1759055972533,7.94,200.83,200.76,7.75]
[1759055972837,7.94,200.83,200.8,7.75]
[1759055973636,4.4795,200.82,200.8,7.75]
[1759055973838,4.4795,200.82,200.79,42.74]
[1759055974630,12.4195,200.82,200.8,7.75]
[1759055974832,69.6667,200.86,200.78,30.74]
[1759055975027,7.94,200.85,200.78,38.49]
[1759055975236,7.94,200.88,200.79,7.75]
[1759055975436,7.94,200.88,200.8,55.62]
[1759055975637,7.94,200.88,200.81,7.75]
[1759055976540,4.4789,200.85,200.81,7.75]
[1759055976734,4.4789,200.85,200.8,55.62]
[1759055977239,4.4789,200.85,200.81,7.75]
[1759055977432,4.4789,200.85,200.8,55.62]
[1759055977833,4.4791,200.84,200.8,55.62]
[1759055978138,4.4791,200.84,200.81,7.75]
[1759055978440,4.4791,200.84,200.8,55.62]
[1759055978631,4.4786,200.86,200.81,7.75]
[1759055979029,4.4786,200.86,200.8,60.0998]
[1759055979234,4.4786,200.86,200.81,7.75]
[1759055979433,4.4786,200.86,200.82,7.75]
[1759055979633,4.4786,200.86,200.81,84.32]
[1759055979940,4.4786,200.86,200.82,7.75]
[1759055980336,4.4786,200.86,200.81,84.32]
[1759055980538,4.4786,200.86,200.82,7.75]
[1759055980741,4.4786,200.86,200.78,4.4802]
[1759055980938,4.4786,200.86,200.79,116.18]
[1759055981142,4.4786,200.86,200.8,7.75]
[1759055981745,7.94,200.88,200.8,7.75]
[1759055981746,4.4789,200.85,200.8,7.75]
[1759055982345,7.94,200.86,200.78,7.75]
[1759055982645,7.94,200.86,200.8,7.75]
[1759055983535,7.94,200.88,200.8,7.75]
[1759055984144,7.94,200.88,200.81,121.16]
[1759055984342,7.94,200.88,200.82,7.75]
[1759055985649,4.4789,200.85,200.82,7.75]
[1759055985846,4.4789,200.85,200.81,121.16]
[1759055986148,4.4789,200.85,200.82,7.75]
[1759055986346,4.4789,200.85,200.81,121.16]
[1759055986836,4.4789,200.85,200.82,7.75]
[1759055987346,4.4789,200.85,200.81,121.16]
[1759055988047,4.4789,200.85,200.82,7.75]
[1759055988548,4.4789,200.85,200.8,7.75]
[1759055988750,4.4789,200.85,200.82,7.75]
[1759055989049,12.4183,200.88,200.82,7.75]
[1759055989250,12.4183,200.88,200.82,121.16]
[1759055989545,4.4785,200.87,200.83,7.75]
[1759055989739,4.4785,200.87,200.8,4.4797]
[1759055989943,4.4785,200.87,200.81,121.16]
[1759055990253,0.66893447,200.89,200.81,121.16]
[1759055990254,4.4786,200.86,200.81,121.16]
[1759055991850,4.4786,200.86,200.82,7.75]
[1759055992045,4.4786,200.86,200.81,121.16]
[1759055992549,4.4786,200.86,200.82,7.75]
[1759055992750,4.4786,200.86,200.81,121.16]
[1759055992945,4.4786,200.86,200.82,7.75]
[1759055993343,4.4786,200.86,200.81,121.16]
[1759055993656,4.4786,200.86,200.8,4.4797]
[1759055993948,4.4786,200.86,200.82,7.75]
[1759055994341,4.4786,200.86,200.81,121.16]
[1759055994749,4.4786,200.86,200.82,7.75]
[1759055995347,4.4786,200.86,200.81,121.16]
[1759055995745,4.4789,200.85,200.82,7.75]
[1759055996651,4.4789,200.85,200.81,121.16]
[1759055996852,4.4789,200.85,200.82,7.75]
[1759055997748,4.4784,200.87,200.82,7.75]
[1759055998652,4.4784,200.87,200.84,7.75]
[1759055998954,4.4784,200.87,200.83,121.16]
[1759055999152,4.4784,200.87,200.84,7.75]
[1759055999349,4.4784,200.87,200.83,121.16]
[1759056000253,4.478,200.89,200.84,7.75]
[1759056000448,4.478,200.89,200.83,121.16]
[1759056000856,4.4782,200.88,200.84,7.75]
[1759056001052,4.4782,200.88,200.85,121.14]
[1759056001649,4.4782,200.88,200.86,7.75]
[1759056001845,4.4782,200.88,200.85,121.14]
[1759056002252,4.4782,200.88,200.86,7.75]
[1759056002652,4.4782,200.88,200.85,121.14]
[1759056003051,4.4782,200.88,200.86,7.75]
[1759056003258,4.4782,200.88,200.84,7.75]
[1759056003454,4.4782,200.88,200.86,7.75]
[1759056003656,4.4782,200.88,200.86,128.89]
[1759056003956,4.4782,200.88,200.87,7.75]
[1759056004759,8.09,200.88,200.82,7.75]
[1759056005059,8.09,200.91,200.85,121.14]
[1759056006459,4.4784,200.87,200.86,7.75]
[1759056007955,12.5684,200.87,200.85,121.14]
[1759056008158,8.09,200.86,200.84,121.14]
[1759056008359,8.09,200.88,200.8,7.75]
[1759056008658,8.09,200.88,200.81,121.14]
[1759056009463,4.4791,200.84,200.82,7.75]
[1759056009661,8.09,200.86,200.82,7.75]
[1759056009963,4.4784,200.87,200.84,7.75]
[1759056010351,3.44007204,200.86,200.83,121.14]
[1759056010554,4.4784,200.87,200.83,121.14]
[1759056010757,4.4784,200.87,200.81,7.92]
[1759056010958,4.4784,200.87,200.83,7.92]
[1759056011154,4.4784,200.87,200.82,121.14]
[1759056011353,4.4784,200.87,200.8,4.4798]
[1759056011562,4.4784,200.87,200.82,7.92]
[1759056011858,4.4784,200.87,200.81,121.14]
[1759056012564,12.568,200.89,200.82,7.92]
[1759056012763,12.568,200.89,200.76,69.7004]
[1759056012764,3.44013377,200.88,200.84,7.92]
[1759056012963,4.478,200.89,200.86,7.92]
[1759056013156,8.15,200.92,200.86,7.92]
[1759056013364,11.58987229,200.91,200.87,7.92]
[1759056013560,11.58987229,200.9,200.87,7.92]
[1759056013865,3.43987229,200.89,200.87,7.92]
[1759056014064,12.6277,200.9,200.86,121.14]
[1759056014365,3.43951657,200.89,200.87,7.92]
[1759056014666,12.6277,200.9,200.87,7.92]
[1759056014965,12.6277,200.9,200.86,121.14]
[1759056016161,12.6277,200.9,200.87,7.92]
[1759056016365,12.6277,200.9,200.86,121.14]
[1759056017556,12.6277,200.9,200.87,7.92]
[1759056018160,12.6277,200.9,200.86,121.14]
[1759056018467,4.4777,200.9,200.86,121.14]
[1759056018665,4.4777,200.9,200.87,7.92]
[1759056018867,4.478,200.89,200.87,7.92]
[1759056023372,4.478,200.89,200.87,129.04]
[1759056023869,4.478,200.89,200.88,7.81]
[1759056025469,12.6275,200.91,200.88,7.81]
[1759056025672,3.4372587,200.9,200.88,7.81]
[1759056025971,4.4775,200.91,200.87,121.12]
[1759056026172,3.43725752,200.9,200.88,121.12]
[1759056026366,4.4775,200.91,200.89,7.81]
[1759056026561,3.43716513,200.9,200.89,7.81]
[1759056027375,4.4779,200.89,200.88,121.12]
[1759056028774,4.4779,200.89,200.88,121.1]
[1759056029673,4.4779,200.89,200.88,128.91]
[1759056033070,4.4776,200.91,200.88,128.91]
[1759056033272,3.43696308,200.9,200.89,7.81]
[1759056042185,3.43696308,200.9,200.89,128.89]
[1759056042386,4.4776,200.91,200.89,121.08]
[1759056042584,4.4776,200.91,200.9,7.81]
[1759056042779,7.91549937,200.91,200.9,7.81]
[1759056043586,7.91549937,200.91,200.9,128.89]
[1759056044484,4.4776,200.91,200.9,128.89]